bitfinex/quotes_ETHUSD_20260203
["timestamp","ask_amount","ask_price","bid_price","bid_amount"]
[1770147528592,0.02269066,2204.4,2203.2,14.37593992]
[1770147528892,0.02269066,2204.6,2203.4,12.28922983]
[1770147529071,0.02269066,2204.1,2203.4,12.28922983]
[1770147529277,0.02269066,2204.3,2203.4,12.28922983]
[1770147529661,0.02269066,2204.3,2203.4,13.42380025]
[1770147529863,0.02269066,2205.0,2203.6,12.28922983]
[1770147530168,0.02269066,2205.1,2203.8,12.28922983]
[1770147530491,0.02269066,2204.7,2203.9,0.951]
[1770147531070,0.02269066,2204.8,2203.9,0.951]
[1770147531275,0.02269066,2204.7,2203.9,0.951]
[1770147532096,0.02269066,2204.7,2203.9,2.08534575]
[1770147532281,0.02269066,2205.1,2204.0,13.92632192]
[1770147532480,0.0011,2205.9,2204.3,12.0351035]
[1770147532797,0.0011,2205.9,2204.2,11.02700906]
[1770147532798,0.0011,2205.9,2204.5,12.0351035]
[1770147533094,0.02379066,2206.1,2204.8,12.0351035]
[1770147533095,0.0011,2206.1,2204.8,12.0351035]
[1770147533296,0.02269066,2206.7,2204.8,12.0351035]
[1770147533297,0.02269066,2206.7,2205.0,12.0351035]
[1770147533503,0.02269066,2206.4,2205.2,12.0351035]
[1770147533670,0.02269066,2206.4,2205.3,0.951]
[1770147533869,0.02269066,2206.4,2205.4,12.80913581]
[1770147533870,0.02269066,2206.1,2205.4,12.80913581]
[1770147534091,0.02269066,2205.7,2205.3,0.951]
[1770147534489,0.02269066,2205.7,2204.9,0.75013011]
[1770147534490,0.02269066,2205.4,2204.9,0.75013011]
[1770147534690,0.02269066,2204.8,2204.7,0.951]
[1770147535001,0.02269066,2204.9,2204.7,0.951]
[1770147535196,4.53234953,2206.4,2204.7,0.951]
[1770147535197,0.02379066,2205.9,2204.7,14.89406092]
[1770147535413,0.02269066,2205.5,2204.8,14.75211835]
[1770147535780,0.02269066,2205.4,2204.8,14.75211835]
[1770147536099,0.02269066,2205.2,2204.8,1.94298254]
[1770147536280,0.02269066,2205.1,2204.7,0.951]
[1770147536472,0.02269066,2205.0,2204.7,0.951]
[1770147536670,0.02269066,2204.8,2204.7,0.951]
[1770147537097,0.02269066,2204.8,2204.2,12.80913581]
[1770147537098,0.02269066,2204.8,2204.2,0.951]
[1770147537296,0.02494614,2204.7,2204.2,2.08518838]
[1770147537497,0.02269066,2204.8,2204.2,2.74740247]
[1770147537700,0.02494614,2205.2,2204.3,0.8916294]
[1770147537889,0.02494614,2205.1,2204.2,2.74740247]
[1770147538095,0.02494614,2205.1,2204.3,0.89160001]
[1770147538297,0.02494614,2205.1,2204.4,2.02569545]
[1770147538510,0.02494614,2205.5,2204.5,1.54925458]
[1770147538698,0.02494614,2205.4,2204.6,0.89303795]
[1770147538899,0.02494614,2205.1,2204.5,0.65621663]
[1770147539222,0.02494614,2205.4,2204.6,0.89296219]
[1770147539423,0.02494614,2205.2,2204.7,0.89296219]
[1770147539592,0.02494614,2205.2,2204.7,0.26636891]
[1770147539790,0.02494614,2206.3,2204.7,1.38087923]
[1770147540012,0.02494614,2205.6,2204.8,2.00825894]
[1770147540200,0.02494614,2206.3,2205.0,1.13378684]
[1770147540201,0.0011,2205.9,2205.0,1.13378684]
[1770147540400,0.02604614,2206.1,2205.3,1.11451032]
[1770147540602,0.02494614,2205.4,2205.1,0.77344446]
[1770147540814,0.02494614,2205.4,2204.9,0.951]
[1770147540815,0.02494614,2205.2,2204.9,0.951]
[1770147541002,0.02494614,2206.3,2205.0,13.70276437]
[1770147541330,0.02040678,2206.2,2205.3,1.11451032]
[1770147541515,0.02040678,2206.6,2205.5,1.11451032]
[1770147541721,0.02040678,2206.3,2205.6,0.951]
[1770147542036,0.02040678,2206.2,2205.7,0.89362856]
[1770147542394,0.02040678,2206.8,2205.7,2.24793331]
[1770147542605,0.02040678,2206.3,2205.7,1.13342299]
[1770147542823,0.02040678,2206.3,2205.6,2.06551032]
[1770147542998,0.02040678,2205.9,2205.7,0.89439002]
[1770147543213,0.02150678,2207.0,2205.7,1.13342559]
[1770147543419,0.02040678,2206.6,2205.8,1.5552343]
[1770147543730,0.02040678,2206.5,2205.9,0.89342093]
[1770147543890,0.02040678,2206.4,2205.8,0.66181337]
[1770147544092,0.02040678,2205.9,2205.6,0.951]
[1770147544420,0.02040678,2205.9,2205.1,2.22902065]
[1770147544421,0.02040678,2205.3,2205.1,0.951]
[1770147544721,0.02040678,2205.4,2204.7,0.26636891]
[1770147544898,0.02040678,2205.6,2204.8,1.13385088]
[1770147545098,0.02040678,2205.5,2204.9,1.68671941]
[1770147545301,0.02040678,2205.1,2204.7,0.26636891]
[1770147545506,0.02040678,2205.2,2204.7,0.26636891]
[1770147545705,0.02040678,2206.3,2204.8,1.13387558]
[1770147545914,0.02040678,2206.3,2205.1,1.13370779]
[1770147546203,0.02040678,2206.4,2205.2,0.89185673]
[1770147546405,0.02040678,2206.6,2205.4,1.11451032]
[1770147546604,0.02040678,2206.6,2205.5,0.89185673]
[1770147546807,0.02040678,2206.7,2205.5,2.00636705]
[1770147547110,0.02150678,2207.0,2205.8,1.11451032]
[1770147547297,0.02040678,2206.8,2205.9,0.89185673]
[1770147547493,0.02040678,2206.8,2206.0,1.8407064]
[1770147547826,0.02150678,2206.8,2206.1,0.8897064]
[1770147548014,0.02040678,2206.5,2206.0,0.951]
[1770147548214,0.02040678,2206.3,2205.4,1.1120407]
[1770147548440,0.02040678,2206.3,2204.5,1.1120407]
[1770147548441,0.02040678,2205.3,2204.5,1.1120407]
[1770147548730,0.02040678,2205.3,2203.8,3.68792775]
[1770147548731,0.02040678,2204.6,2203.6,1.1130407]
[1770147548898,0.02040678,2204.4,2203.7,1.15112594]
[1770147549101,0.02040678,2204.7,2203.8,0.89141574]
[1770147549331,0.02040678,2205.5,2204.1,1.13423116]
[1770147549332,0.02040678,2205.4,2204.1,1.13423116]
[1770147549496,0.02040678,2205.8,2204.2,2.95445644]
[1770147549821,0.02040678,2205.7,2204.3,2.4123252]
[1770147550022,0.02040678,2205.8,2204.6,1.1120407]
[1770147550195,0.02040678,2206.1,2204.8,1.13388969]
[1770147550397,0.02040678,2205.7,2204.9,0.89141574]
[1770147550592,0.02040678,2205.7,2204.7,1.13391725]
[1770147550796,0.02040678,2206.0,2204.7,1.13391725]
[1770147550797,0.02040678,2206.0,2204.8,1.56998403]
[1770147551025,12.10227597,2207.0,2205.0,0.2335703]
[1770147551026,0.0011,2206.8,2205.0,0.2335703]
[1770147551211,0.0011,2206.8,2205.7,1.1120407]
[1770147551412,0.0011,2206.8,2205.8,0.89179738]
[1770147551614,0.0011,2206.8,2205.9,1.84279738]
[1770147551805,0.0011,2206.8,2206.0,0.89179738]
[1770147552005,0.0011,2206.8,2205.9,0.951]
[1770147552210,0.0011,2206.8,2206.0,0.89170214]
[1770147552421,0.0011,2206.8,2205.9,0.951]
[1770147552621,0.0011,2206.8,2206.0,1.55137182]
[1770147552823,0.0011,2206.8,2206.1,2.02514104]
[1770147552998,0.0011,2207.0,2206.2,0.89187122]
[1770147553201,0.0011,2207.7,2206.5,1.1120407]
[1770147553507,0.0011,2207.7,2206.6,3.10548253]
[1770147553706,0.02040678,2207.6,2206.7,0.89130856]
[1770147553915,0.02040678,2207.7,2206.8,0.89130856]
[1770147554131,4.54822266,2208.6,2206.6,1.1120407]
[1770147554132,0.02040678,2208.6,2206.9,0.89053513]
[1770147554331,0.02040678,2208.2,2207.1,1.13270807]
[1770147554540,0.02040678,2208.1,2207.0,1.13272523]
[1770147554841,0.02040678,2208.3,2207.1,1.45608525]
[1770147555145,0.02040678,2208.6,2207.2,2.00174633]
[1770147555301,0.02040678,2208.6,2207.3,0.88970563]
[1770147555500,0.02040678,2208.5,2207.4,0.88970563]
[1770147555703,0.02040678,2208.5,2207.1,2.05044091]
[1770147555704,0.02040678,2208.1,2207.1,0.56637962]
[1770147555910,0.02040678,2208.0,2206.9,1.13278479]
[1770147556236,0.02040678,2208.4,2207.0,2.02305918]
[1770147556418,0.0158554,2207.9,2206.7,2.0630407]
[1770147556597,0.0158554,2207.9,2206.8,0.89019431]
[1770147556802,0.0158554,2207.9,2206.9,0.89019431]
[1770147557027,0.0158554,2207.5,2206.7,0.951]
[1770147557899,0.0158554,2207.6,2206.7,0.951]
[1770147557900,0.0158554,2207.7,2206.7,0.951]
[1770147558106,0.0158554,2207.6,2206.7,0.951]
[1770147558514,0.0158554,2206.8,2206.2,1.1120407]
[1770147558730,0.0158554,2206.6,2205.6,2.24551699]
[1770147558918,0.0158554,2206.6,2205.7,1.57036161]
[1770147559227,0.0158554,2207.6,2205.8,0.89234633]
[1770147559432,0.01813113,2207.5,2206.0,1.1120407]
[1770147559600,0.01813113,2207.7,2206.2,1.1120407]
[1770147559802,0.01813113,2207.7,2206.3,2.3216509]
[1770147560002,0.01813113,2207.7,2206.4,0.89234633]
[1770147560238,0.01813113,2207.8,2205.7,1.79000322]
[1770147560239,0.01813113,2206.6,2205.7,1.79000322]
[1770147560539,0.01813113,2206.5,2205.3,2.24567331]
[1770147560749,12.03048385,2207.5,2205.6,1.1120407]
[1770147560901,0.01813113,2207.0,2205.6,1.1120407]
[1770147561102,0.01813113,2207.5,2206.0,1.1120407]
[1770147561407,0.01813113,2207.5,2205.9,1.48406129]
[1770147561408,0.01813113,2207.5,2206.1,2.265213]
[1770147561633,0.01813113,2207.5,2206.2,0.8935621]
[1770147561817,0.01813113,2207.6,2206.3,0.8935621]
[1770147562150,0.01813113,2207.1,2206.1,0.2596102]
[1770147562331,0.01813113,2207.1,2206.1,2.26538523]
[1770147562637,0.01813113,2207.1,2206.2,0.89373433]
[1770147562948,0.0011,2207.8,2206.3,0.95]
[1770147563150,0.0011,2207.8,2206.9,1.1120407]
[1770147563476,0.0011,2208.0,2207.0,1.1120407]
[1770147563609,0.0011,2208.0,2207.1,0.89373433]
[1770147563809,0.0011,2208.0,2206.9,1.1120407]
[1770147564243,0.0011,2208.0,2206.9,2.00447267]
[1770147564534,0.0011,2208.0,2207.0,3.13723207]
[1770147564830,0.0011,2208.0,2207.1,1.65925894]
[1770147565035,0.0011,2208.0,2207.2,0.89243197]
[1770147565208,0.0011,2208.0,2207.1,0.76682697]
[1770147565409,0.0011,2208.0,2207.2,0.892113]
[1770147565649,0.0011,2208.0,2207.3,0.89194256]
[1770147565805,0.0011,2208.0,2207.1,0.76682697]
[1770147566005,0.0011,2208.0,2207.2,1.19312575]
[1770147566236,0.0011,2208.0,2207.2,0.30116271]
[1770147566416,0.01923113,2208.0,2206.7,2.24493613]
[1770147566613,0.0011,2208.0,2206.8,2.02512397]
[1770147566816,0.0011,2208.0,2207.1,1.1120407]
[1770147567007,0.01813113,2209.2,2207.2,2.0620407]
[1770147567227,0.01813113,2209.3,2207.5,11.02133274]
[1770147567423,0.01813113,2209.0,2207.6,3.1064484]
[1770147567722,0.01813113,2208.9,2207.7,0.89227443]
[1770147567921,0.01813113,2209.0,2207.8,0.89227443]
[1770147568137,0.01813113,2209.0,2207.6,1.1120407]
[1770147568342,0.01813113,2209.0,2207.0,1.1120407]
[1770147568343,0.01813113,2208.9,2207.0,1.1120407]
[1770147568521,0.01813113,2208.4,2207.1,1.3716509]
[1770147568844,0.01813113,2208.6,2207.2,1.1120407]
[1770147569036,0.01813113,2208.6,2207.2,2.00441747]
[1770147569231,0.01813113,2208.6,2207.3,2.00441747]
[1770147569553,0.01813113,2209.0,2207.4,2.95441747]
[1770147569710,0.01813113,2209.1,2207.5,1.33622465]
[1770147569711,1.14981568,2209.1,2207.5,1.33622465]
[1770147569913,1.14981568,2209.1,2207.2,9.90929204]
[1770147569914,0.01813113,2208.4,2207.2,1.1120407]
[1770147570219,0.01813113,2208.4,2207.1,0.2596102]
[1770147570220,0.01813113,2208.3,2207.1,0.2596102]
[1770147570539,0.01813113,2207.6,2206.5,1.1120407]
[1770147570740,0.01813113,2207.8,2206.2,0.33986513]
[1770147570942,4.64910644,2208.6,2206.5,1.13300622]
[1770147570943,1.13213108,2208.3,2206.5,1.13300622]
[1770147571117,1.13213108,2208.3,2206.6,0.89398236]
[1770147571435,1.13213108,2208.3,2206.7,0.89398236]
[1770147571633,1.13213108,2208.3,2206.4,1.1120407]
[1770147571634,0.52985349,2208.2,2206.4,1.1120407]
[1770147571810,1.08896888,2208.2,2206.4,2.00573682]
[1770147572009,12.03268385,2207.8,2206.5,0.89369612]
[1770147572210,0.01813113,2207.3,2205.6,1.1120407]
[1770147572440,0.01813113,2207.3,2205.5,1.1120407]
[1770147572441,1.13260544,2207.3,2205.5,1.1120407]
[1770147572744,12.03268385,2207.4,2205.6,1.1120407]
[1770147572949,0.01813113,2207.8,2205.6,1.1120407]
[1770147572951,0.01813113,2208.7,2206.5,9.90929204]
[1770147573256,0.01813113,2208.5,2206.7,1.1120407]
[1770147573439,0.01813113,2208.5,2206.8,0.89494373]
[1770147573440,0.01813113,2208.4,2206.8,0.89494373]
[1770147573745,0.01813113,2208.4,2206.4,2.0620407]
[1770147573746,0.01813113,2208.2,2206.4,2.0620407]
[1770147573907,0.01813113,2208.2,2206.5,0.89624484]
[1770147574112,0.01813113,2208.2,2206.6,0.29582855]
[1770147574340,0.0011,2208.1,2206.6,1.19107339]
[1770147574535,0.0011,2208.1,2206.7,0.89524484]
[1770147574761,0.0011,2208.1,2206.6,0.29582855]
[1770147574762,0.0011,2208.1,2206.8,0.89524484]
[1770147574947,0.0011,2208.1,2206.6,2.54083216]
[1770147575243,0.0011,2208.1,2206.7,1.14910908]
[1770147575428,0.0011,2208.1,2206.8,0.89492586]
[1770147575960,0.0011,2208.1,2207.0,1.1120407]
[1770147576112,0.0011,2208.1,2207.1,0.95]
[1770147576308,0.0011,2208.1,2207.1,2.0620407]
[1770147576512,0.0011,2208.1,2207.2,0.29569666]
[1770147576740,0.0011,2208.1,2206.9,1.1120407]
[1770147576946,0.0011,2208.1,2207.0,0.89576549]
[1770147577145,0.0011,2208.1,2206.7,1.36622392]
[1770147577334,0.0011,2208.1,2206.8,0.89529624]
[1770147577535,0.0011,2208.1,2206.9,0.89529624]
[1770147577739,0.0011,2208.1,2206.7,0.25418322]
[1770147578111,0.0011,2208.1,2206.8,0.89531575]
[1770147578316,0.0011,2208.1,2206.6,3.49079938]
[1770147578514,0.0011,2208.1,2206.7,0.89525071]
[1770147578722,0.0011,2208.1,2206.8,0.89525071]
[1770147579016,0.0011,2208.1,2206.9,0.89525071]
[1770147579240,0.0011,2208.1,2207.0,2.00729141]
[1770147579447,0.0011,2208.1,2207.1,0.89525071]
[1770147579748,0.01923113,2208.1,2206.6,2.35786925]
[1770147579948,0.01923113,2208.1,2206.7,0.89736864]
[1770147580138,0.01813113,2208.0,2206.8,0.89736864]
[1770147580337,0.0011,2208.1,2207.1,1.1120407]
[1770147580542,0.0011,2208.1,2207.6,1.1120407]
[1770147580717,0.0011,2208.1,2207.7,2.38226497]
[1770147580920,0.0011,2208.1,2207.8,0.89736864]
[1770147581149,0.0011,2208.1,2207.9,0.89736864]
[1770147581468,0.0011,2208.1,2207.7,0.37285563]
[1770147581749,0.0011,2208.1,2207.3,1.1120407]
[1770147582760,0.0011,2208.1,2207.2,1.1120407]
[1770147583047,0.0011,2208.1,2207.1,1.1120407]
[1770147583230,0.0011,2208.1,2207.2,1.1120407]
[1770147584141,0.01813113,2207.8,2206.6,1.40786925]
[1770147584344,0.01813113,2207.8,2206.7,0.28929305]
[1770147584545,0.01813113,2207.8,2206.6,1.1120407]
[1770147584746,0.01813113,2207.8,2206.5,0.001]
[1770147584747,0.01813113,2207.7,2206.5,1.1130407]
[1770147584923,0.01813113,2207.8,2206.5,0.001]
[1770147585129,1.15048281,2207.8,2206.5,0.001]
[1770147585466,0.01813113,2207.8,2206.5,0.001]
[1770147585662,1.15048233,2207.8,2206.5,0.001]
[1770147585826,1.81407007,2207.8,2206.5,0.001]
[1770147586022,12.93110375,2207.8,2206.5,0.001]
[1770147586268,0.01813113,2207.7,2206.5,0.001]
[1770147586428,0.68171652,2207.8,2206.5,0.001]
[1770147586629,0.01813113,2207.8,2206.5,0.001]
[1770147586825,1.1514418,2208.1,2206.6,1.12297822]
[1770147586826,2.05430922,2208.1,2206.6,1.12297822]
[1770147587055,0.01813113,2207.9,2206.5,0.001]
[1770147587291,0.01813113,2207.8,2206.5,0.001]
[1770147587561,0.01813113,2207.7,2206.7,0.001]
[1770147587928,0.0011,2207.9,2206.7,0.001]
[1770147588871,0.0011,2207.9,2206.7,1.12397822]
[1770147589036,0.0011,2207.9,2206.7,0.001]
[1770147590376,0.01813113,2207.6,2206.5,0.001]
[1770147590579,0.01813113,2207.2,2205.9,1.48406129]
[1770147590736,0.01813113,2207.1,2205.7,1.12297822]
[1770147590936,0.01813113,2206.9,2205.6,1.12297822]
[1770147591244,0.01813113,2206.4,2205.4,0.001]
[1770147591432,0.919,2206.5,2205.4,0.001]
[1770147592771,2.05203149,2206.5,2205.4,0.001]
[1770147592959,0.01813113,2206.2,2205.4,0.001]
[1770147593396,0.01813113,2206.0,2204.9,0.001]
[1770147593531,0.01813113,2206.0,2204.6,0.001]
[1770147593532,0.01813113,2205.5,2204.6,0.001]
[1770147593859,0.918,2205.6,2204.6,0.001]
[1770147594035,0.01813113,2206.0,2204.7,1.13390088]
[1770147594230,12.04816481,2206.6,2204.9,1.13383362]
[1770147594462,1.20662959,2206.5,2205.0,1.70068367]
[1770147594837,0.918,2206.6,2205.1,0.89579772]
[1770147595036,0.918,2206.6,2205.0,1.70068367]
[1770147596368,0.01813113,2206.3,2205.0,0.56693721]
[1770147596539,0.01813113,2206.4,2205.0,1.13377956]
[1770147596734,0.01813113,2206.4,2204.7,1.13394112]
[1770147597249,0.01813113,2206.4,2204.7,12.85815844]
[1770147597462,0.917,2206.4,2204.8,0.89461162]
[1770147597637,0.917,2206.4,2204.7,12.85815844]
[1770147597844,0.01813113,2206.5,2204.8,2.84239724]
[1770147598056,0.01813113,2206.3,2204.8,1.94680923]
[1770147598459,0.01813113,2205.9,2204.6,1.13498649]
[1770147598663,0.01813113,2206.2,2204.6,0.001]
[1770147598963,0.916,2206.2,2204.6,0.001]
[1770147599864,0.916,2206.2,2204.6,11.72521732]
[1770147600047,0.916,2206.2,2204.7,1.84707038]
[1770147600245,0.01813113,2205.8,2204.6,0.001]
[1770147600564,0.01813113,2206.6,2204.8,11.72421732]
[1770147600743,11.13016481,2206.5,2205.0,0.001]
[1770147600933,11.13016481,2206.5,2204.6,0.001]
[1770147600934,11.11203368,2206.1,2204.6,0.001]
[1770147601140,0.01813113,2206.0,2204.8,0.001]
[1770147601346,0.93313113,2206.0,2204.8,0.001]
[1770147601548,0.01813113,2205.4,2204.6,0.001]
[1770147601747,0.01813113,2205.7,2204.6,0.001]
[1770147602141,0.01813113,2205.5,2204.6,0.001]
[1770147602368,0.01813113,2205.5,2203.9,0.001]
[1770147602369,0.01813113,2205.4,2203.9,0.001]
[1770147602546,0.01813113,2205.4,2204.0,1.13428007]
[1770147602747,0.01813113,2205.4,2203.9,0.001]
[1770147603063,0.01813113,2205.4,2203.6,0.001]
[1770147603065,0.01813113,2204.6,2203.6,0.001]
[1770147603247,0.01813113,2204.3,2203.4,0.001]
[1770147603572,0.01813113,2204.0,2203.2,0.001]
[1770147604348,0.01813113,2203.9,2203.0,0.001]
[1770147604551,0.01813113,2204.0,2203.0,0.001]
[1770147604552,0.914,2204.0,2203.0,0.001]
[1770147604959,0.01813113,2204.1,2203.0,0.001]
[1770147605168,0.93213113,2204.1,2203.0,0.001]
[1770147605453,0.01813113,2204.0,2203.0,0.001]
[1770147605845,0.01813113,2203.7,2202.8,0.001]
[1770147606049,2.06620619,2204.5,2202.8,0.001]
[1770147606251,0.01813113,2203.9,2202.8,0.001]
[1770147606491,0.01813113,2203.7,2202.8,0.001]
[1770147606783,0.01813113,2203.6,2202.5,0.001]
[1770147606995,0.01813113,2203.8,2202.5,0.001]
[1770147606996,0.75521373,2203.8,2202.5,0.001]
[1770147607594,0.01813113,2203.5,2202.5,0.001]
[1770147608146,0.01813113,2203.7,2202.5,0.001]
[1770147608364,1.66821373,2203.8,2202.5,0.001]
[1770147608657,0.75521373,2203.8,2202.5,0.001]
[1770147609246,0.01813113,2203.7,2202.5,0.001]
[1770147609477,0.01813113,2203.6,2202.5,0.001]
[1770147610292,0.01813113,2202.8,2201.9,0.001]
[1770147610452,0.01813113,2202.8,2201.1,0.001]
[1770147610453,0.01813113,2202.1,2201.1,0.001]
[1770147610656,0.01813113,2201.7,2201.1,0.001]
[1770147610990,0.01813113,2201.9,2200.9,0.001]
[1770147610991,0.913,2201.9,2200.9,0.001]
[1770147611293,0.01813113,2202.1,2200.9,0.001]
[1770147611465,0.01813113,2201.6,2200.5,0.001]
[1770147611986,0.1024,2202.2,2200.5,0.001]
[1770147612144,0.1024,2202.2,2200.6,1.13600462]
[1770147612145,1.03253113,2202.2,2200.6,1.13600462]
[1770147612364,0.55911539,2202.3,2200.8,1.13594859]
[1770147612365,0.54098426,2202.3,2200.8,1.13594859]
[1770147612567,0.54098426,2202.3,2200.7,12.29235546]
[1770147612808,0.54098426,2202.6,2200.8,13.8121399]
[1770147612994,0.01813113,2202.4,2200.8,13.8121399]
[1770147613304,0.01813113,2202.7,2200.8,13.8121399]
[1770147613489,0.01813113,2202.4,2200.9,13.61662936]
[1770147614072,0.01813113,2202.2,2200.9,13.61662936]
[1770147614274,0.01813113,2202.2,2200.8,2.08793234]
[1770147614596,0.01813113,2202.3,2200.8,2.08793234]
[1770147614905,0.01813113,2202.3,2200.8,0.952]
[1770147614906,0.01813113,2202.1,2200.8,0.952]
[1770147615265,0.01813113,2202.0,2200.8,0.952]
[1770147615774,0.01813113,2201.9,2200.8,0.952]
[1770147616272,0.01813113,2201.4,2200.5,0.001]
[1770147616472,0.01813113,2201.5,2200.5,0.001]
[1770147616674,0.01813113,2201.5,2200.5,1.13707879]
[1770147616879,0.01813113,2201.9,2200.5,1.13707879]
[1770147616880,0.01813113,2201.9,2200.5,0.001]
[1770147617084,0.01813113,2201.8,2200.5,0.001]
[1770147617889,0.01813113,2201.6,2200.5,0.001]
[1770147618292,0.01813113,2201.4,2200.5,0.001]
[1770147618618,0.01813113,2201.8,2200.5,0.001]
[1770147618994,0.01813113,2201.7,2200.5,0.001]
[1770147619374,0.01813113,2201.6,2200.5,0.001]
[1770147619574,0.01813113,2201.7,2200.5,0.001]
[1770147619801,0.01813113,2201.5,2200.5,0.001]
[1770147620008,0.01813113,2201.5,2200.3,0.001]
[1770147620009,0.01813113,2200.7,2200.3,0.001]
[1770147620308,0.01813113,2200.8,2200.3,0.001]
[1770147620490,0.01813113,2200.7,2200.0,0.001]
[1770147620878,0.01813113,2200.9,2200.0,0.001]
[1770147621079,0.54098426,2201.4,2200.0,0.001]
[1770147621309,1.02953113,2201.6,2200.0,0.001]
[1770147621517,1.32791834,2201.5,2200.0,0.001]
[1770147621808,2.23791834,2201.5,2200.0,0.001]
[1770147622286,0.01813113,2201.4,2200.0,0.001]
[1770147622907,1.32791834,2201.5,2200.0,12.64040124]
[1770147623109,0.01813113,2202.1,2200.0,13.59240124]
[1770147623110,0.92813113,2201.9,2200.0,13.59240124]
[1770147623309,4.66138736,2202.3,2200.0,13.59240124]
[1770147623310,0.31104649,2202.0,2200.6,12.63940124]
[1770147623630,0.73089165,2202.8,2201.2,12.63940124]
[1770147623812,0.73089165,2202.8,2201.3,1.26394012]
[1770147623813,0.01813113,2202.7,2201.3,1.26394012]
[1770147624011,0.01813113,2202.6,2200.8,0.952]
[1770147624385,0.01813113,2202.6,2200.8,13.59140124]
[1770147624585,0.01813113,2202.3,2200.8,13.59140124]
[1770147624817,0.01813113,2202.6,2200.8,13.59140124]
[1770147625027,0.01813113,2202.3,2200.8,13.59140124]
[1770147625327,0.01813113,2202.3,2200.3,12.63940124]
[1770147625328,0.01813113,2201.7,2200.3,12.63940124]
[1770147625483,0.01813113,2202.1,2200.3,12.63940124]
[1770147625484,0.01813113,2202.8,2200.7,1.13597517]
[1770147625687,0.01813113,2202.2,2200.8,1.13591427]
[1770147626117,0.01813113,2202.6,2200.8,13.77531551]
[1770147626411,0.01813113,2202.3,2200.8,13.77531551]
[1770147626581,0.01813113,2202.3,2200.8,13.77535085]
[1770147626784,0.01813113,2202.1,2200.9,1.37753509]
[1770147627283,0.01813113,2202.0,2200.5,0.001]
[1770147627495,0.01813113,2201.6,2200.5,0.001]
[1770147627726,0.01813113,2202.2,2200.8,1.13592692]
[1770147627927,0.01923113,2202.5,2200.9,1.13589138]
[1770147628097,0.01923113,2202.5,2200.9,14.72829262]
[1770147628098,0.0011,2202.5,2200.9,14.72829262]
[1770147628301,0.01813113,2202.2,2201.0,1.92719023]
[1770147628511,0.01813113,2202.1,2200.9,0.953]
[1770147628804,0.01813113,2202.2,2200.9,2.08889259]
[1770147629005,0.01813113,2202.2,2200.9,2.08888781]
[1770147629200,0.01813113,2202.3,2200.9,2.08888781]
[1770147629394,0.0011,2202.5,2201.1,12.63940124]
[1770147629596,0.0011,2202.5,2201.2,14.82989602]
[1770147629794,0.0011,2202.5,2201.4,12.63940124]
[1770147630320,0.01813113,2202.4,2201.2,1.28729715]
[1770147630544,0.0011,2202.5,2201.1,12.63940124]
[1770147630708,0.01813113,2202.2,2200.9,0.953]
[1770147631031,0.01813113,2201.9,2200.9,0.953]
[1770147631322,0.01813113,2201.7,2200.5,0.001]
[1770147631498,0.01813113,2201.5,2200.5,0.001]
[1770147631911,0.01813113,2201.4,2200.5,0.001]
[1770147632519,0.01813113,2201.2,2200.5,0.001]
[1770147632721,0.01813113,2201.2,2200.3,0.001]
[1770147632722,0.01813113,2201.1,2200.3,0.001]
[1770147633024,0.01813113,2201.0,2200.3,0.001]
[1770147633728,0.01813113,2201.3,2200.3,0.001]
[1770147633935,0.01813113,2201.0,2200.3,0.001]
[1770147634825,0.01813113,2200.9,2200.3,0.001]
[1770147635123,0.01813113,2201.0,2200.3,0.001]
[1770147635840,0.01813113,2200.9,2200.3,0.001]
[1770147636140,0.01813113,2200.8,2200.0,0.001]
[1770147636343,0.01813113,2201.1,2200.0,0.001]
[1770147636701,0.68192638,2201.1,2200.0,0.001]
[1770147636901,0.01813113,2201.0,2200.0,0.001]
[1770147638122,0.01813113,2200.9,2200.0,0.001]
[1770147638310,0.01813113,2200.8,2200.0,0.001]
[1770147638507,0.01813113,2201.5,2200.1,0.91515021]
[1770147638812,0.01813113,2201.3,2200.2,0.91515021]
[1770147639024,0.01813113,2201.3,2200.3,0.91459109]
[1770147639330,0.01813113,2201.3,2200.5,0.001]
[1770147639537,0.0011,2200.7,2200.5,0.001]
[1770147640239,1.15352201,2201.9,2200.6,0.91647769]
[1770147640405,0.01813113,2201.6,2200.7,0.91647769]
[1770147640611,0.01813113,2201.7,2200.8,0.91647769]
[1770147640807,0.01813113,2201.7,2200.5,1.12397822]
[1770147641028,0.01813113,2201.7,2200.6,2.03908078]
[1770147641343,0.01813113,2201.7,2200.7,0.91610256]
[1770147641555,0.0011,2201.8,2200.8,0.91610256]
[1770147641761,0.0011,2201.8,2200.9,0.91610256]
[1770147641914,0.0011,2201.8,2201.0,0.91610256]
[1770147642119,0.0011,2201.8,2201.1,0.91610256]
[1770147642314,0.0011,2201.8,2201.2,0.91610256]
[1770147642540,0.0011,2201.8,2200.9,1.12297822]
[1770147642717,0.0011,2201.8,2201.0,0.91466044]
[1770147642924,0.0011,2201.8,2201.1,2.03763866]
[1770147643242,0.0011,2201.8,2201.2,2.03763866]
[1770147643409,0.0011,2201.8,2201.3,2.03763866]
[1770147643612,0.0011,2202.5,2201.4,0.91466044]
[1770147643823,0.0011,2202.5,2201.5,2.03763866]
[1770147644041,0.0011,2202.5,2201.6,0.91466044]
[1770147644208,0.0011,2202.5,2201.7,0.91466044]
[1770147644408,0.0011,2202.5,2201.5,1.12297822]
[1770147644613,0.0011,2202.5,2201.7,1.12297822]
[1770147644852,0.0011,2202.5,2201.9,1.12297822]
[1770147645151,0.31432501,2203.1,2202.2,1.12297822]
[1770147645354,0.31432501,2203.1,2202.3,0.91475753]
[1770147645555,0.31432501,2203.1,2202.0,1.12297822]
[1770147645752,0.31432501,2203.1,2202.1,2.03700519]
[1770147645957,0.31432501,2203.1,2202.2,0.91402697]
[1770147646112,0.31432501,2203.1,2202.3,2.03700519]
[1770147646440,0.92523113,2203.8,2202.4,0.91402697]
[1770147646643,0.92523113,2203.8,2202.5,0.91402697]
[1770147646858,0.01813113,2203.7,2202.2,1.12297822]
[1770147647013,1.15375583,2203.6,2202.3,0.91326888]
[1770147647214,0.01813113,2203.5,2202.4,0.91326888]
[1770147647415,0.01813113,2203.4,2202.2,1.53614658]
[1770147647642,0.01813113,2203.4,2202.3,0.91210229]
[1770147647832,0.01813113,2203.1,2202.0,1.12297822]
[1770147648032,0.01813113,2202.9,2201.7,2.07597822]
[1770147648213,0.01813113,2203.1,2201.8,0.91222128]
[1770147648410,0.01813113,2203.2,2201.9,0.91222128]